fUSD/lending_fUSD_20260517
["ID","MTS","AMOUNT","RATE_DAILY","PERIOD"]
[422507979,1779006650000,-300.0,0.00036484,2]
[422507989,1779006650000,-300.0,0.00036484,2]
[422507990,1779006650000,-949.41386656,0.00036484,2]
[422507983,1779006650000,-726.3731759,0.00036484,2]
[422507986,1779006650000,-300.70672347,0.00036484,2]
[422507982,1779006650000,-893.8052833,0.00036484,2]
[422507980,1779006650000,-527.9795525,0.00036484,2]
[422507981,1779006650000,-1067.39759447,0.00036484,2]
[422507978,1779006650000,-604.73492277,0.00036484,2]
[422507988,1779006650000,-370.3759879,0.00036484,2]
[422507985,1779006650000,-300.0,0.00036484,2]
[422507987,1779006650000,-300.0,0.00036484,2]
[422507984,1779006650000,-301.92446648,0.00036484,2]
[422507991,1779006650000,-300.0,0.00036484,2]
[422507993,1779006650000,-344.12979214,0.00036484,2]
[422507994,1779006650000,-527.12281632,0.00036484,2]
[422508002,1779006650000,-577.47815809,0.00036484,2]
[422507992,1779006650000,-1913.25849317,0.00036484,2]
[422507997,1779006650000,-864.84573435,0.00036484,2]
[422507995,1779006650000,-1147.71030809,0.00036484,2]
[422507996,1779006650000,-309.72976467,0.00036484,2]
[422507999,1779006650000,-300.0,0.00036484,2]
[422508029,1779006650000,-300.0,0.00036484,2]
[422507969,1779006650000,-300.0,0.00036484,2]
[422508035,1779006650000,-1147.71030809,0.00036484,2]
[422508070,1779006650000,-527.12281632,0.00036484,2]
[422508072,1779006650000,-1061.16597686,0.00036567,2]
[422508081,1779006650000,-500.0,0.00036712,2]
[422508073,1779006650000,-233.32208467,0.00036647,30]
[422508074,1779006650000,-151.35,0.0003669,30]
[422508080,1779006650000,-500.0,0.00036712,2]
[422508082,1779006650000,-392.65031015,0.00036712,2]
[422508077,1779006650000,-500.0,0.00036712,2]
[422508075,1779006650000,-505.0,0.00036691,12]
[422508078,1779006650000,-500.0,0.00036712,2]
[422508076,1779006650000,-500.0,0.00036712,2]
[422508071,1779006650000,-251.11897888,0.00036555,2]
[422508079,1779006650000,-500.0,0.00036712,2]
[422508084,1779006650000,-500.0,0.00036712,2]
[422508093,1779006650000,-241.21762394,0.00036712,2]
[422508092,1779006650000,-150.0,0.00036712,2]
[422508094,1779006650000,-150.0,0.00036712,2]
[422508095,1779006650000,-150.0,0.00036712,2]
[422508083,1779006650000,-500.0,0.00036712,2]
[422508096,1779006650000,-150.0,0.00036712,2]
[422508085,1779006650000,-500.0,0.00036712,2]
[422508086,1779006650000,-380.0,0.00036712,2]
[422508087,1779006650000,-500.0,0.00036712,2]
[422508088,1779006650000,-500.0,0.00036712,2]
[422508090,1779006650000,-500.0,0.00036712,2]
[422508091,1779006650000,-194.0,0.00036712,2]
[422508089,1779006650000,-500.0,0.00036712,2]
[422508097,1779006650000,-500.0,0.00036712,2]
[422508041,1779006650000,-300.0,0.00036484,2]
[422508064,1779006650000,-300.70672347,0.00036484,2]
[422508066,1779006650000,-300.0,0.00036484,2]
[422508098,1779006650000,-500.0,0.00036712,2]
[422508060,1779006650000,-893.8052833,0.00036484,2]
[422508065,1779006650000,-300.0,0.00036484,2]
[422508031,1779006650000,-303.65185186,0.00036484,2]
[422508039,1779006650000,-300.0,0.00036484,2]
[422508036,1779006650000,-309.72976467,0.00036484,2]
[422508037,1779006650000,-864.84573435,0.00036484,2]
[422508033,1779006650000,-344.12979214,0.00036484,2]
[422508038,1779006650000,-311.04198967,0.00036484,2]
[422508048,1779006650000,-309.96996065,0.00036484,2]
[422508043,1779006650000,-452.10208933,0.00036484,2]
[422508045,1779006650000,-300.0,0.00036484,2]
[422508044,1779006650000,-300.0,0.00036484,2]
[422508047,1779006650000,-484.30212364,0.00036484,2]
[422508046,1779006650000,-300.0,0.00036484,2]
[422508049,1779006650000,-300.0,0.00036484,2]
[422508054,1779006650000,-316.92503476,0.00036484,2]
[422508034,1779006650000,-527.12281632,0.00036484,2]
[422508050,1779006650000,-1095.24427681,0.00036484,2]
[422508061,1779006650000,-726.3731759,0.00036484,2]
[422508062,1779006650000,-301.92446648,0.00036484,2]
[422508063,1779006650000,-300.0,0.00036484,2]
[422508059,1779006650000,-1067.39759447,0.00036484,2]
[422508055,1779006650000,-532.28953022,0.00036484,2]
[422508058,1779006650000,-527.9795525,0.00036484,2]
[422508056,1779006650000,-604.73492277,0.00036484,2]
[422508067,1779006650000,-949.41386656,0.00036484,2]
[422508057,1779006650000,-300.0,0.00036484,2]
[422508068,1779006650000,-1913.25849317,0.00036484,2]
[422508051,1779006650000,-300.0,0.00036484,2]
[422508052,1779006650000,-300.0,0.00036484,2]
[422508053,1779006650000,-492.91797782,0.00036484,2]
[422508069,1779006650000,-344.12979214,0.00036484,2]
[422508136,1779006651000,-1360.42,0.000375,14]
[422508139,1779006651000,-270.0455652,0.00037651,2]
[422508143,1779006651000,-150.0,0.00037694,2]
[422508141,1779006651000,-386.98,0.00037684,30]
[422508142,1779006651000,-158.67,0.00037684,60]
[422508129,1779006651000,-150.0,0.000373,2]
[422508147,1779006651000,-158.67,0.00037884,60]
[422508137,1779006651000,-1700.67513691,0.00037516,2]
[422508135,1779006651000,-150.0,0.00037423,2]
[422508133,1779006651000,-6055.0,0.00037311,2]
[422508134,1779006651000,-505.0,0.00037327,13]
[422508148,1779006651000,-919.0,0.000379,120]
[422508138,1779006651000,-558.0,0.000376,30]
[422508149,1779006651000,-323.32,0.000379,15]
[422508145,1779006651000,-158.67,0.00037784,60]
[422508140,1779006651000,-2284.6409,0.00037666,2]
[422508144,1779006651000,-197.64436422,0.00037695,60]
[422508150,1779006651000,-539.45175628,0.00037924,2]
[422508151,1779006651000,-311.07225314,0.00037924,2]
[422508160,1779006651000,-1560.44371713,0.00038,2]
[422508161,1779006651000,-158.692671,0.00038084,60]
[422508152,1779006651000,-505.0,0.00037964,13]
[422508155,1779006651000,-153.0,0.00038,120]
[422508154,1779006651000,-158.40983434,0.00037996,2]
[422508153,1779006651000,-158.67,0.00037984,60]
[422508156,1779006651000,-218.77,0.00038,30]
[422508132,1779006651000,-1354.0,0.00037311,2]
[422508146,1779006651000,-151.35,0.0003784,86]
[422508131,1779006651000,-1223.0,0.000373,2]
[422508110,1779006651000,-1971.38842652,0.00036729,120]
[422508127,1779006651000,-151.35,0.0003726,60]
[422508157,1779006651000,-228.0,0.00038,30]
[422508099,1779006651000,-500.0,0.00036712,2]
[422508102,1779006651000,-150.0,0.00036712,2]
[422508103,1779006651000,-243.06675581,0.00036712,2]
[422508108,1779006651000,-150.0,0.00036712,2]
[422508109,1779006651000,-250.0,0.00036712,2]
[422508105,1779006651000,-150.0,0.00036712,2]
[422508100,1779006651000,-150.0,0.00036712,2]
[422508101,1779006651000,-150.0,0.00036712,2]
[422508107,1779006651000,-299.93318737,0.00036712,2]
[422508104,1779006651000,-150.0,0.00036712,2]
[422508106,1779006651000,-150.0,0.00036712,2]
[422508111,1779006651000,-2284.6409,0.00036759,2]
[422508122,1779006651000,-1971.38842652,0.00037118,120]
[422508112,1779006651000,-200.0,0.00036777,2]
[422508121,1779006651000,-260.4103811,0.00037103,2]
[422508113,1779006651000,-150.0,0.00036777,2]
[422508118,1779006651000,-151.32304821,0.00037,2]
[422508114,1779006651000,-218.77,0.000368,30]
[422508119,1779006651000,-208.48490792,0.00037,120]
[422508117,1779006651000,-230.0,0.00037,2]
[422508120,1779006651000,-150.0,0.000371,30]
[422508115,1779006651000,-1971.38842652,0.00036819,120]
[422508116,1779006651000,-4339.19968754,0.00036907,120]
[422508123,1779006651000,-4339.19968754,0.00037188,120]
[422508126,1779006651000,-2284.6409,0.00037213,2]
[422508128,1779006651000,-1700.67513691,0.00037286,2]
[422508124,1779006651000,-154.29214092,0.000372,120]
[422508125,1779006651000,-2009.1782,0.00037213,2]
[422508130,1779006651000,-582.0,0.000373,2]
[422508158,1779006651000,-151.0,0.00038,120]
[422508165,1779006651000,-168.93,0.00038122,3]
[422508163,1779006651000,-2009.1781,0.0003812,2]
[422508200,1779006651000,-200.0,0.00038399,2]
[422508195,1779006651000,-200.0,0.00038399,2]
[422508196,1779006651000,-200.0,0.00038399,2]
[422508199,1779006651000,-200.0,0.00038399,2]
[422508197,1779006651000,-200.0,0.00038399,2]
[422508198,1779006651000,-200.0,0.00038399,2]
[422508204,1779006651000,-200.0,0.00038399,2]
[422508203,1779006651000,-200.0,0.00038399,2]
[422508206,1779006651000,-200.0,0.00038399,2]
[422508208,1779006651000,-200.0,0.00038399,2]
[422508207,1779006651000,-200.0,0.00038399,2]
[422508205,1779006651000,-200.0,0.00038399,2]
[422508213,1779006651000,-200.0,0.00038399,2]
[422508193,1779006651000,-200.0,0.00038399,2]
[422508209,1779006651000,-200.0,0.00038399,2]
[422508210,1779006651000,-200.0,0.00038399,2]
[422508212,1779006651000,-200.0,0.00038399,2]
[422508214,1779006651000,-200.0,0.00038399,2]
[422508211,1779006651000,-200.0,0.00038399,2]
[422508224,1779006651000,-200.0,0.00038399,2]
[422508217,1779006651000,-200.0,0.00038399,2]
[422508219,1779006651000,-200.0,0.00038399,2]
[422508216,1779006651000,-200.0,0.00038399,2]
[422508222,1779006651000,-200.0,0.00038399,2]
[422508220,1779006651000,-200.0,0.00038399,2]
[422508221,1779006651000,-200.0,0.00038399,2]
[422508159,1779006651000,-282.66,0.00038,7]
[422508223,1779006651000,-336.0,0.00038399,2]
[422508215,1779006651000,-200.0,0.00038399,2]
[422508192,1779006651000,-200.0,0.00038399,2]
[422508218,1779006651000,-200.0,0.00038399,2]
[422508201,1779006651000,-200.0,0.00038399,2]
[422508194,1779006651000,-200.0,0.00038399,2]
[422508162,1779006651000,-9607.43100594,0.000381,33]
[422508175,1779006651000,-1260.0,0.00038329,120]
[422508174,1779006651000,-1260.0,0.00038329,120]
[422508164,1779006651000,-2284.6412,0.0003812,2]
[422508168,1779006651000,-329.54703372,0.00038199,2]
[422508170,1779006651000,-215.27651611,0.000382,30]
[422508167,1779006651000,-233.32208467,0.0003813,30]
[422508166,1779006651000,-1026.5,0.00038125,30]
[422508169,1779006651000,-215.27651612,0.000382,30]
[422508171,1779006651000,-215.27651611,0.000382,30]
[422508172,1779006651000,-2209.0,0.00038329,120]
[422508177,1779006651000,-1385.5,0.00038329,120]
[422508178,1779006651000,-1385.5,0.00038329,120]
[422508173,1779006651000,-2209.0,0.00038329,120]
[422508187,1779006651000,-200.0,0.00038399,2]
[422508176,1779006651000,-2116.0,0.00038329,120]
[422508191,1779006651000,-200.0,0.00038399,2]
[422508202,1779006651000,-200.0,0.00038399,2]
[422508185,1779006651000,-200.0,0.00038399,2]
[422508183,1779006651000,-200.0,0.00038399,2]
[422508184,1779006651000,-200.0,0.00038399,2]
[422508190,1779006651000,-200.0,0.00038399,2]
[422508182,1779006651000,-200.0,0.00038399,2]
[422508181,1779006651000,-2015.0,0.00038329,120]
[422508186,1779006651000,-200.0,0.00038399,2]
[422508179,1779006651000,-2095.5,0.00038329,120]
[422508189,1779006651000,-200.0,0.00038399,2]
[422508188,1779006651000,-200.0,0.00038399,2]
[422508180,1779006651000,-2095.5,0.00038329,120]
[422508267,1779006652000,-151.0,0.00038923,14]
[422508265,1779006652000,-1640.93489132,0.000389,7]
[422508266,1779006652000,-151.0,0.00038923,14]
[422508260,1779006652000,-958.358,0.00038808,120]
[422508258,1779006652000,-500.0,0.00038808,120]
[422508259,1779006652000,-500.0,0.00038808,120]
[422508261,1779006652000,-919.7,0.000389,120]
[422508257,1779006652000,-314.0,0.000388,2]
[422508263,1779006652000,-200.0,0.000389,16]
[422508268,1779006652000,-359.63450418,0.00038924,7]
[422508262,1779006652000,-100528.55181487,0.000389,18]
[422508255,1779006652000,-558.0,0.000388,30]
[422508270,1779006652000,-151.0,0.00038926,30]
[422508276,1779006652000,-780755.885325,0.00038926,2]
[422508269,1779006652000,-151.0,0.00038926,30]
[422508272,1779006652000,-151.0,0.00038926,7]
[422508274,1779006652000,-151.0,0.00038926,30]
[422508273,1779006652000,-151.0,0.00038926,30]
[422508275,1779006652000,-3181.588162,0.00038926,2]
[422508271,1779006652000,-151.0,0.00038926,30]
[422508279,1779006652000,-233.32208466,0.00038946,120]
[422508289,1779006652000,-151.0,0.000391,120]
[422508290,1779006652000,-197.64436423,0.00039132,2]
[422508278,1779006652000,-877.4772,0.00038944,30]
[422508286,1779006652000,-278.0,0.00039,120]
[422508256,1779006652000,-1000.0,0.000388,2]
[422508277,1779006652000,-1582.847602,0.00038926,2]
[422508253,1779006652000,-159.21,0.000387,10]
[422508230,1779006652000,-200.0,0.00038399,2]
[422508264,1779006652000,-153.0,0.000389,120]
[422508226,1779006652000,-200.0,0.00038399,2]
[422508225,1779006652000,-200.0,0.00038399,2]
[422508227,1779006652000,-200.0,0.00038399,2]
[422508281,1779006652000,-1164.25,0.0003895,2]
[422508238,1779006652000,-4001.4436199,0.00038403,120]
[422508235,1779006652000,-200.0,0.00038399,2]
[422508231,1779006652000,-200.0,0.00038399,2]
[422508239,1779006652000,-300.0,0.00038403,2]
[422508236,1779006652000,-157.0,0.00038399,2]
[422508228,1779006652000,-200.0,0.00038399,2]
[422508234,1779006652000,-200.0,0.00038399,2]
[422508229,1779006652000,-200.0,0.00038399,2]
[422508233,1779006652000,-200.0,0.00038399,2]
[422508237,1779006652000,-153.0,0.000384,120]
[422508241,1779006652000,-300.0,0.00038403,2]
[422508240,1779006652000,-300.0,0.00038403,2]
[422508247,1779006652000,-500.0,0.00038479,120]
[422508244,1779006652000,-300.0,0.00038403,2]
[422508249,1779006652000,-884.3996865,0.00038479,120]
[422508242,1779006652000,-300.0,0.00038403,2]
[422508248,1779006652000,-500.0,0.00038479,120]
[422508250,1779006652000,-278.0,0.000385,120]
[422508251,1779006652000,-151.0,0.00038596,14]
[422508252,1779006652000,-505.0,0.00038601,14]
[422508245,1779006652000,-309.34,0.00038403,2]
[422508246,1779006652000,-151.35,0.0003841,105]
[422508243,1779006652000,-300.0,0.00038403,2]
[422508254,1779006652000,-278.0,0.0003875,120]
[422508287,1779006652000,-228.0,0.00039,30]
[422508232,1779006652000,-200.0,0.00038399,2]
[422508280,1779006652000,-1262.8161,0.0003895,2]
[422508321,1779006652000,-1586.0,0.00039548,11]
[422508320,1779006652000,-278.0,0.000395,120]
[422508330,1779006652000,-500.0,0.00039686,3]
[422508319,1779006652000,-434278.28631762,0.0003949,2]
[422508325,1779006652000,-308.0,0.000396,2]
[422508323,1779006652000,-150.0,0.00039579,2]
[422508322,1779006652000,-151.35,0.0003956,120]
[422508329,1779006652000,-387.09,0.00039657,30]
[422508331,1779006652000,-500.0,0.00039686,3]
[422508327,1779006652000,-233.32208467,0.00039613,30]
[422508326,1779006652000,-250.0,0.000396,30]
[422508324,1779006652000,-2313.0,0.00039589,11]
[422508328,1779006652000,-269.36,0.00039644,120]
[422508333,1779006652000,-350.0,0.00039701,2]
[422508332,1779006652000,-200.0,0.00039686,3]
[422508344,1779006652000,-2313.0,0.00039778,11]
[422508334,1779006652000,-2313.0,0.0003972,11]
[422508343,1779006652000,-150.0,0.00039777,2]
[422508336,1779006652000,-2313.0,0.0003972,11]
[422508340,1779006652000,-5634.40711717,0.00039746,2]
[422508337,1779006652000,-300.0,0.00039726,120]
[422508338,1779006652000,-748.37,0.00039726,60]
[422508342,1779006652000,-350.0,0.00039768,2]
[422508341,1779006652000,-278.0,0.0003975,120]
[422508339,1779006652000,-699.16,0.00039726,60]
[422508345,1779006652000,-153.0,0.000398,120]
[422508285,1779006652000,-218.77,0.00039,30]
[422508318,1779006652000,-245.55034777,0.0003949,120]
[422508311,1779006652000,-700.0,0.00039356,60]
[422508335,1779006652000,-2313.0,0.0003972,11]
[422508307,1779006652000,-150.0,0.000393,2]
[422508312,1779006652000,-500.0,0.00039356,60]
[422508284,1779006652000,-158.40983434,0.00038996,2]
[422508283,1779006652000,-151.35,0.0003899,116]
[422508282,1779006652000,-350.0,0.00038956,2]
[422508288,1779006652000,-326.65091853,0.00039057,120]
[422508294,1779006652000,-1000.0,0.00039183,2]
[422508293,1779006652000,-400.0,0.00039183,2]
[422508292,1779006652000,-350.0,0.00039179,2]
[422508303,1779006652000,-150.0,0.000393,2]
[422508299,1779006652000,-278.0,0.0003925,120]
[422508295,1779006652000,-197.64436423,0.00039232,2]
[422508304,1779006652000,-150.0,0.000393,2]
[422508297,1779006652000,-2313.0,0.00039236,11]
[422508302,1779006652000,-150.0,0.000393,2]
[422508291,1779006652000,-2339.1459,0.00039179,30]
[422508301,1779006652000,-209.63176895,0.000393,2]
[422508313,1779006652000,-2313.0,0.000394,11]
[422508296,1779006652000,-1586.0,0.00039236,11]
[422508309,1779006652000,-153.0,0.000393,120]
[422508315,1779006652000,-2132.0,0.000394,120]
[422508314,1779006652000,-2313.0,0.000394,11]
[422508308,1779006652000,-150.0,0.000393,2]
[422508310,1779006652000,-500.0,0.00039356,60]
[422508317,1779006652000,-819.0,0.000394,11]
[422508316,1779006652000,-2313.0,0.000394,11]
[422508306,1779006652000,-150.0,0.000393,2]
[422508298,1779006652000,-505.0,0.00039238,15]
[422508300,1779006652000,-150.0,0.000393,2]
[422508305,1779006652000,-150.0,0.000393,2]
[422508369,1779006653000,-10107.72613821,0.0004,4]
[422508374,1779006653000,-1586.44848816,0.0004,2]
[422508366,1779006653000,-174.26601955,0.0004,120]
[422508370,1779006653000,-1013.53644378,0.0004,7]
[422508371,1779006653000,-1059.28080889,0.0004,20]
[422508372,1779006653000,-24145.81524532,0.0004,2]
[422508373,1779006653000,-396.52858528,0.0004,2]
[422508375,1779006653000,-4177.95347227,0.0004,2]
[422508381,1779006653000,-4645.97262085,0.0004,90]
[422508377,1779006653000,-41331.70734632,0.0004,10]
[422508378,1779006653000,-584.20453031,0.0004,5]
[422508382,1779006653000,-39715.8999519,0.0004,10]
[422508379,1779006653000,-1708.72228897,0.0004,2]
[422508380,1779006653000,-27720.14254263,0.0004,120]
[422508383,1779006653000,-37386.04475502,0.0004,10]
[422508368,1779006653000,-2101.91929713,0.0004,2]
[422508385,1779006653000,-3000.0,0.0004,7]
[422508376,1779006653000,-4617.38281278,0.0004,50]
[422508367,1779006653000,-528.08749188,0.0004,120]
[422508352,1779006653000,-919.7,0.000399,120]
[422508364,1779006653000,-2000.0,0.0004,120]
[422508386,1779006653000,-164.05332048,0.0004,2]
[422508346,1779006653000,-200.0,0.000398,10]
[422508349,1779006653000,-403.2076737,0.0003987,2]
[422508351,1779006653000,-154.54813898,0.00039886,30]
[422508347,1779006653000,-350.0,0.00039822,2]
[422508348,1779006653000,-359.71931752,0.00039866,14]
[422508350,1779006653000,-505.0,0.00039875,15]
[422508353,1779006653000,-211.64652307,0.000399,120]
[422508365,1779006653000,-558.0,0.0004,30]
[422508356,1779006653000,-200.0,0.000399,14]
[422508355,1779006653000,-300.0,0.000399,10]
[422508357,1779006653000,-1572.578401,0.000399,33]
[422508358,1779006653000,-359.63450418,0.00039924,7]
[422508359,1779006653000,-163.0,0.00039966,11]
[422508362,1779006653000,-3193.51989109,0.00039999,2]
[422508363,1779006653000,-14292.6433,0.0004,60]
[422508361,1779006653000,-1047.49797076,0.00039999,31]
[422508360,1779006653000,-2313.0,0.00039966,11]
[422508354,1779006653000,-200.0,0.000399,16]
[422508388,1779006653000,-4000.0,0.0004,14]
[422508384,1779006653000,-319.70992136,0.0004,2]
[422508419,1779006653000,-278.0,0.0004,120]
[422508411,1779006653000,-500.0,0.0004,7]
[422508409,1779006653000,-500.0,0.0004,7]
[422508416,1779006653000,-500.0,0.0004,7]
[422508413,1779006653000,-500.0,0.0004,7]
[422508417,1779006653000,-500.0,0.0004,7]
[422508414,1779006653000,-500.0,0.0004,7]
[422508418,1779006653000,-451.51,0.0004,7]
[422508422,1779006653000,-500.0,0.0004,120]
[422508412,1779006653000,-500.0,0.0004,7]
[422508420,1779006653000,-5800.0,0.0004,14]
[422508427,1779006653000,-168.068147,0.0004,20]
[422508423,1779006653000,-500.0,0.0004,120]
[422508425,1779006653000,-215.0785988,0.0004,7]
[422508424,1779006653000,-500.0,0.0004,120]
[422508429,1779006653000,-151.0,0.0004,7]
[422508428,1779006653000,-477.6,0.0004,31]
[422508426,1779006653000,-761.01826726,0.0004,120]
[422508387,1779006653000,-10866.70974655,0.0004,2]
[422508421,1779006653000,-192.39,0.0004,2]
[422508410,1779006653000,-500.0,0.0004,7]
[422508415,1779006653000,-500.0,0.0004,7]
[422508407,1779006653000,-500.0,0.0004,7]
[422508390,1779006653000,-515.78913571,0.0004,2]
[422508389,1779006653000,-2175.0,0.0004,20]
[422508391,1779006653000,-30152.82279616,0.0004,2]
[422508394,1779006653000,-10000.0,0.0004,90]
[422508404,1779006653000,-500.0,0.0004,7]
[422508393,1779006653000,-1000.0,0.0004,120]
[422508396,1779006653000,-204.68,0.0004,120]
[422508395,1779006653000,-324.28,0.0004,120]
[422508397,1779006653000,-383.51,0.0004,120]
[422508392,1779006653000,-610.5082972,0.0004,2]
[422508398,1779006653000,-151.18,0.0004,120]
[422508401,1779006653000,-2000.0,0.0004,120]
[422508403,1779006653000,-500.0,0.0004,7]
[422508408,1779006653000,-500.0,0.0004,7]
[422508406,1779006653000,-500.0,0.0004,7]
[422508400,1779006653000,-329.22,0.0004,120]
[422508405,1779006653000,-500.0,0.0004,7]
[422508402,1779006653000,-159.0,0.0004,120]
[422508399,1779006653000,-692.59,0.0004,120]
[422508475,1779006654000,-400.0,0.0004027,3]
[422508470,1779006654000,-1088.83639512,0.00040234,90]
[422508473,1779006654000,-278.0,0.0004025,120]
[422508479,1779006654000,-1673.49,0.0004029,60]
[422508478,1779006654000,-167.52,0.0004029,60]
[422508465,1779006654000,-11589.41,0.00040215,9]
[422508469,1779006654000,-435.53455804,0.00040234,90]
[422508467,1779006654000,-403465.53,0.00040215,9]
[422508463,1779006654000,-151.0,0.000402,120]
[422508457,1779006654000,-800.0,0.00040172,15]
[422508472,1779006654000,-2313.0,0.00040237,11]
[422508458,1779006654000,-800.0,0.00040172,15]
[422508468,1779006654000,-293.86404168,0.00040228,2]
[422508471,1779006654000,-311.09611288,0.00040234,90]
[422508483,1779006654000,-582.0,0.000403,2]
[422508476,1779006654000,-400.0,0.0004027,3]
[422508474,1779006654000,-2313.0,0.00040262,11]
[422508480,1779006654000,-328.94,0.0004029,60]
[422508482,1779006654000,-1656.02,0.0004029,60]
[422508481,1779006654000,-728.65,0.0004029,60]
[422508484,1779006654000,-1223.0,0.000403,2]
[422508486,1779006654000,-6055.0,0.00040311,2]
[422508490,1779006654000,-1000.0,0.00040397,90]
[422508492,1779006654000,-1500.0,0.000404,33]
[422508485,1779006654000,-1354.0,0.00040311,2]
[422508489,1779006654000,-163.0,0.0004036,11]
[422508488,1779006654000,-20359.9147567,0.00040344,15]
[422508460,1779006654000,-500.0,0.00040178,60]
[422508477,1779006654000,-400.0,0.0004027,3]
[422508459,1779006654000,-700.0,0.00040178,60]
[422508438,1779006654000,-5162.98681034,0.00040122,15]
[422508461,1779006654000,-954.58977359,0.00040183,120]
[422508430,1779006654000,-151.0,0.0004,30]
[422508431,1779006654000,-151.0,0.0004,30]
[422508433,1779006654000,-2500.0,0.000401,120]
[422508436,1779006654000,-165.32731817,0.00040117,2]
[422508437,1779006654000,-5000.0,0.00040122,15]
[422508435,1779006654000,-278.0,0.0004011,120]
[422508432,1779006654000,-163.0,0.0004004,11]
[422508434,1779006654000,-278.0,0.0004011,120]
[422508439,1779006654000,-151.35,0.0004013,120]
[422508440,1779006654000,-278.0,0.00040135,120]
[422508442,1779006654000,-900.0,0.00040151,15]
[422508441,1779006654000,-278.0,0.00040135,120]
[422508443,1779006654000,-900.0,0.00040151,15]
[422508464,1779006654000,-344218.98,0.00040215,9]
[422508444,1779006654000,-900.0,0.00040151,15]
[422508454,1779006654000,-800.0,0.00040172,15]
[422508447,1779006654000,-900.0,0.00040151,15]
[422508448,1779006654000,-900.0,0.00040151,15]
[422508449,1779006654000,-900.0,0.00040151,15]
[422508446,1779006654000,-900.0,0.00040151,15]
[422508445,1779006654000,-900.0,0.00040151,15]
[422508451,1779006654000,-800.0,0.00040172,15]
[422508453,1779006654000,-800.0,0.00040172,15]
[422508452,1779006654000,-800.0,0.00040172,15]
[422508466,1779006654000,-28044.31,0.00040215,9]
[422508456,1779006654000,-800.0,0.00040172,15]
[422508455,1779006654000,-800.0,0.00040172,15]
[422508462,1779006654000,-153.0,0.000402,120]
[422508450,1779006654000,-2107.96,0.00040169,2]
[422508487,1779006654000,-151.0,0.00040341,14]
[422508533,1779006654000,-151.0,0.00040496,30]
[422508493,1779006654000,-320.57411475,0.00040401,120]
[422508525,1779006654000,-263.8,0.00040435,2]
[422508526,1779006654000,-1830.62971474,0.00040435,120]
[422508531,1779006654000,-151.0,0.00040496,30]
[422508528,1779006654000,-1000.0,0.0004044,90]
[422508524,1779006654000,-26797.0,0.0004043,2]
[422508543,1779006654000,-6393.0,0.00040499,120]
[422508534,1779006654000,-151.0,0.00040496,30]
[422508535,1779006654000,-154.0,0.00040499,120]
[422508532,1779006654000,-151.0,0.00040496,30]
[422508537,1779006654000,-152.0,0.00040499,120]
[422508536,1779006654000,-161.0,0.00040499,120]
[422508539,1779006654000,-597.0,0.00040499,120]
[422508544,1779006654000,-952.29093124,0.00040499,120]
[422508527,1779006654000,-155.0,0.00040435,120]
[422508538,1779006654000,-510.0,0.00040499,120]
[422508545,1779006654000,-202254.29118358,0.00040499,60]